fUSD/lending_fUSD_20251122
["ID","MTS","AMOUNT","RATE_DAILY","PERIOD"]
[394642037,1763806285061,-1579.91,0.00017808,2]
[394642038,1763806285071,-500.0,0.00017808,2]
[394642039,1763806285081,-500.0,0.00017808,2]
[394642040,1763806285090,-500.0,0.00017808,2]
[394642041,1763806285099,-500.0,0.00017808,2]
[394642042,1763806285108,-532.69,0.00017808,2]
[394642043,1763806285119,-570.72,0.00017808,2]
[394642044,1763806285128,-500.0,0.00017808,2]
[394642045,1763806285138,-515.86,0.00017808,2]
[394642046,1763806285148,-1073.42,0.00017808,2]
[394642047,1763806285157,-1688.87,0.00017808,2]
[394642048,1763806285166,-500.0,0.00017808,2]
[394642049,1763806285175,-500.0,0.00017808,2]
[394642050,1763806285184,-602.73,0.00017808,2]
[394642051,1763806285194,-786.03,0.00017808,2]
[394642052,1763806285204,-500.0,0.00017808,2]
[394642053,1763806285214,-500.0,0.00017808,2]
[394642054,1763806285224,-500.0,0.00017808,2]
[394642055,1763806285233,-1309.89,0.00017808,2]
[394642056,1763806285242,-500.0,0.00017808,2]
[394642057,1763806285251,-500.0,0.00017808,2]
[394642058,1763806285260,-500.0,0.00017808,2]
[394642059,1763806285269,-919.35,0.00017808,2]
[394642060,1763806285278,-606.55,0.00017808,2]
[394642061,1763806285287,-523.55,0.00017808,2]
[394642062,1763806285296,-816.25,0.00017808,2]
[394642063,1763806285305,-500.0,0.00017808,2]
[394642064,1763806285315,-500.0,0.00017808,2]
[394642065,1763806285324,-500.0,0.00017808,2]
[394642066,1763806285333,-500.0,0.00017808,2]
[394642067,1763806285343,-1202.89,0.00017808,2]
[394642068,1763806285352,-696.52,0.00017808,2]
[394642069,1763806285361,-532.1,0.00017808,2]
[394642070,1763806285371,-527.78504538,0.00017808,2]
[394642071,1763806285380,-1008.12,0.00017808,2]
[394642072,1763806285390,-771.55,0.00017808,2]
[394642073,1763806285399,-682.29,0.00017808,2]
[394642074,1763806285408,-597.76,0.00017808,2]
[394642075,1763806285417,-2185.15,0.00017808,2]
[394642076,1763806285428,-500.0,0.00017808,2]
[394642077,1763806285438,-500.0,0.00017808,2]
[394642078,1763806285447,-500.0,0.00017808,2]
[394642079,1763806285457,-935.0,0.00017808,2]
[394642080,1763806285466,-561.06,0.00017808,2]
[394642081,1763806285475,-558.65,0.00017808,2]
[394642082,1763806285485,-500.0,0.00017808,2]
[394642083,1763806285494,-1048.65,0.00017808,2]
[394642084,1763806285503,-500.0,0.00017808,2]
[394642085,1763806285518,-500.0,0.00017808,2]
[394642086,1763806285527,-500.0,0.00017808,2]
[394642087,1763806285537,-517.79,0.00017808,2]
[394642088,1763806285547,-500.0,0.00017808,2]
[394642089,1763806285556,-500.0,0.00017808,2]
[394642090,1763806285566,-393.5097576,0.00017808,2]
[394642091,1763806285575,-500.0,0.00017808,2]
[394642092,1763806285585,-1090.24,0.00017808,2]
[394642093,1763806285596,-776.75,0.00017808,2]
[394642094,1763806285606,-364.48994437,0.00017808,2]
[394642095,1763806285616,-595.92,0.00017808,2]
[394642096,1763806285625,-500.0,0.00017808,2]
[394642097,1763806285637,-500.0,0.00017808,2]
[394642098,1763806285647,-500.0,0.00017808,2]
[394642099,1763806285657,-500.0,0.00017808,2]
[394642100,1763806285667,-500.0,0.00017808,2]
[394642101,1763806285677,-2164.02,0.00017808,2]
[394642102,1763806285687,-500.0,0.00017808,2]
[394642103,1763806285696,-500.0,0.00017808,2]
[394642104,1763806285706,-500.0,0.00017808,2]
[394642105,1763806285717,-500.0,0.00017808,2]
[394642106,1763806285726,-655.49,0.00017808,2]
[394642107,1763806285738,-1677.03,0.00017808,2]
[394642108,1763806285749,-7021.18,0.00017808,2]
[394642109,1763806285759,-500.0,0.00017808,2]
[394642110,1763806285769,-696.44,0.00017808,2]
[394642111,1763806285779,-786.49,0.00017808,2]
[394642112,1763806285790,-500.0,0.00017808,2]
[394642113,1763806285800,-500.0,0.00017808,2]
[394642114,1763806285811,-500.0,0.00017808,2]
[394642115,1763806285823,-1780.25,0.00017808,2]
[394642116,1763806285833,-557.18,0.00017808,2]
[394642117,1763806285843,-987.68,0.00017808,2]
[394642118,1763806285853,-1070.85,0.00017808,2]
[394642119,1763806285862,-672.12,0.00017808,2]
[394642120,1763806285872,-500.0,0.00017808,2]
[394642121,1763806285885,-702.43,0.00017808,2]
[394642122,1763806285895,-628.98,0.00017808,2]
[394642123,1763806285905,-586.32,0.00017808,2]
[394642124,1763806285915,-500.0,0.00017808,2]
[394642125,1763806285925,-500.0,0.00017808,2]
[394642126,1763806285934,-500.0,0.00017808,2]
[394642127,1763806285944,-500.0,0.00017808,2]
[394642128,1763806285954,-1078.17,0.00017808,2]
[394642129,1763806285964,-570.12634313,0.00017808,2]
[394642130,1763806285974,-500.0,0.00017808,2]
[394642131,1763806285984,-500.0,0.00017808,2]
[394642132,1763806285994,-168.53854588,0.00017808,2]
[394642133,1763806286004,-557.34,0.00017808,2]
[394642134,1763806286014,-500.0,0.00017808,2]
[394642135,1763806286024,-500.0,0.00017808,2]
[394642136,1763806286034,-631.15,0.00017808,2]
[394642137,1763806286044,-1073.87,0.00017808,2]
[394642138,1763806286055,-500.0,0.00017808,2]
[394642139,1763806286065,-503.62,0.00017808,2]
[394642140,1763806286074,-500.0,0.00017808,2]
[394642141,1763806286084,-500.0,0.00017808,2]
[394642142,1763806286094,-881.11,0.00017808,2]
[394642143,1763806286104,-500.0,0.00017808,2]
[394642144,1763806286114,-5846.52,0.00017808,2]
[394642145,1763806286124,-500.0,0.00017808,2]
[394642146,1763806286137,-729.49,0.00017808,2]
[394642147,1763806286147,-4450.71,0.00017808,2]
[394642148,1763806286157,-3727.77,0.00017808,2]
[394642149,1763806286167,-500.0,0.00017808,2]
[394642150,1763806286177,-500.0,0.00017808,2]
[394642151,1763806286187,-673.15,0.00017808,2]
[394642152,1763806286197,-867.82,0.00017808,2]
[394642153,1763806286207,-500.0,0.00017808,2]
[394642154,1763806286217,-674.27,0.00017808,2]
[394642155,1763806286228,-500.0,0.00017808,2]
[394642156,1763806286238,-500.0,0.00017808,2]
[394642157,1763806286249,-1064.84,0.00017808,2]
[394642158,1763806286260,-978.13,0.00017808,2]
[394642159,1763806286272,-500.0,0.00017808,2]
[394642160,1763806286283,-1344.66,0.00017808,2]
[394642161,1763806286293,-651.06,0.00017808,2]
[394642162,1763806286303,-557.98862568,0.00017808,2]
[394642163,1763806286313,-835.55,0.00017808,2]
[394642164,1763806286323,-500.0,0.00017808,2]
[394642165,1763806286332,-500.0,0.00017808,2]
[394642166,1763806286343,-776.5,0.00017808,2]
[394642167,1763806286352,-567.01,0.00017808,2]
[394642168,1763806286363,-662.91,0.00017808,2]
[394642169,1763806286372,-500.0,0.00017808,2]
[394642170,1763806286384,-765.48,0.00017808,2]
[394642171,1763806286394,-577.58,0.00017808,2]
[394642172,1763806286403,-819.38,0.00017808,2]
[394642173,1763806286413,-500.0,0.00017808,2]
[394642174,1763806286423,-500.0,0.00017808,2]
[394642175,1763806286433,-994.62,0.00017808,2]
[394642176,1763806286442,-2977.14,0.00017808,2]
[394642177,1763806286452,-500.0,0.00017808,2]
[394642178,1763806286462,-500.0,0.00017808,2]
[394642179,1763806286472,-584.85,0.00017808,2]
[394642180,1763806286481,-785.63,0.00017808,2]
[394642181,1763806286491,-172.12,0.00017808,2]
[394642182,1763806286501,-600.0,0.00017808,2]
[394642183,1763806286510,-501.67893318,0.00017868,2]
[394642184,1763806286520,-502.59676737,0.000179,2]
[394642185,1763806286530,-554.24080951,0.000179,2]
[394642186,1763806286540,-355.53126832,0.000179,2]
[394642187,1763806286550,-183.15,0.000179,2]
[394642188,1763806286559,-840.40059214,0.000179,2]
[394642189,1763806286569,-300.0,0.00017922,2]
[394642190,1763806286579,-2259.0568913,0.00017923,2]
[394642191,1763806286588,-718.7762732,0.00017923,2]
[394642192,1763806286598,-157.7878298,0.00017939,2]
[394642193,1763806286608,-500.0,0.00017945,2]
[394642194,1763806286618,-651.0,0.00017945,2]
[394642195,1763806286628,-258.69253394,0.00017945,2]
[394642196,1763806286640,-500.0,0.00017945,2]
[394642197,1763806286651,-469.0,0.00017945,2]
[394642198,1763806286660,-553.0,0.00017945,2]
[394642199,1763806286670,-500.0,0.00017945,2]
[394642200,1763806286680,-388.836843,0.0001798,2]
[394642201,1763806286690,-1152.34,0.00018,2]
[394642202,1763806286701,-985875.95482151,0.00018,2]
[394642203,1763806286711,-13696898.13596294,0.00018,2]
[394642204,1763806286722,-1057137.10205008,0.00018,2]
[394642205,1763806286736,-2550506.20523725,0.00018,2]
[394642206,1763806286747,-131402.50981942,0.00018,2]
[394642207,1763806286757,-175589.57538364,0.00018,2]
[394642208,1763806286768,-241244.88613633,0.00018,2]
[394642209,1763806286779,-388705.03114644,0.00018,2]
[394642210,1763806286790,-2185176.88407315,0.00018,2]
[394642211,1763806286800,-605670.75766125,0.00018,2]
[394642212,1763806286811,-150.0,0.00018,2]
[394642213,1763806286822,-596.44559656,0.00018,2]
[394642214,1763806286832,-8658546.72383719,0.00018,2]
[394642215,1763806286842,-885.80257534,0.00018,2]
[394642216,1763806286852,-140475.15457267,0.00018,2]
[394642217,1763806286862,-243391.51806542,0.00018,2]
[394642218,1763806286873,-202.47243292,0.00018055,2]
[394642219,1763806286882,-513.93484838,0.00018082,2]
[394642220,1763806286895,-651.0,0.00018082,2]
[394642221,1763806286905,-500.0,0.00018082,2]
[394642222,1763806286915,-469.0,0.00018082,2]
[394642223,1763806286925,-553.0,0.00018082,2]
[394642224,1763806286935,-500.0,0.00018082,2]
[394642225,1763806286946,-500.0,0.00018082,2]
[394642226,1763806286955,-500.0,0.00018082,2]
[394642227,1763806286965,-500.0,0.00018082,2]
[394642228,1763806286974,-867.5,0.00018082,2]
[394642229,1763806286984,-500.0,0.00018082,2]
[394642230,1763806286993,-639.42062312,0.00018082,2]
[394642231,1763806287003,-500.0,0.00018082,2]
[394642232,1763806287012,-643.22,0.00018082,2]
[394642233,1763806287022,-843.09,0.00018082,2]
[394642234,1763806287032,-664.19,0.00018082,2]
[394642235,1763806287041,-579.49,0.00018082,2]
[394642236,1763806287051,-944.02,0.00018082,2]
[394642237,1763806287060,-500.0,0.00018082,2]
[394642238,1763806287070,-781.7,0.00018082,2]
[394642239,1763806287080,-500.0,0.00018082,2]
[394642240,1763806287090,-754.3,0.00018082,2]
[394642241,1763806287100,-500.0,0.00018082,2]
[394642242,1763806287110,-500.0,0.00018082,2]
[394642243,1763806287120,-826.89,0.00018082,2]
[394642244,1763806287130,-595.77088579,0.00018082,2]
[394642245,1763806287142,-500.0,0.00018082,2]
[394642246,1763806287152,-760.07,0.00018082,2]
[394642247,1763806287161,-660.25,0.00018082,2]
[394642248,1763806287171,-500.0,0.00018082,2]
[394642249,1763806287181,-500.0,0.00018082,2]
[394642250,1763806287191,-500.0,0.00018082,2]
[394642251,1763806287200,-620.59,0.00018082,2]
[394642252,1763806287210,-718.76,0.00018082,2]
[394642253,1763806287219,-589.29,0.00018082,2]
[394642254,1763806287228,-523.48,0.00018082,2]
[394642255,1763806287238,-500.0,0.00018082,2]
[394642256,1763806287248,-500.0,0.00018082,2]
[394642257,1763806287257,-1151.27,0.00018082,2]
[394642258,1763806287266,-539.63,0.00018082,2]
[394642259,1763806287276,-433.55002483,0.00018082,2]
[394642260,1763806287285,-943.25,0.00018082,2]
[394642261,1763806287295,-500.0,0.00018082,2]
[394642262,1763806287304,-532.89,0.00018082,2]
[394642263,1763806287314,-500.0,0.00018082,2]
[394642264,1763806287324,-500.0,0.00018082,2]
[394642265,1763806287333,-717.92,0.00018082,2]
[394642266,1763806287343,-500.0,0.00018082,2]
[394642267,1763806287353,-791.9,0.00018082,2]
[394642268,1763806287363,-500.0,0.00018082,2]
[394642269,1763806287372,-671.16,0.00018082,2]
[394642270,1763806287385,-513.69,0.00018082,2]
[394642271,1763806287395,-718.46,0.00018082,2]
[394642272,1763806287405,-903.01,0.00018082,2]
[394642273,1763806287415,-500.0,0.00018082,2]
[394642274,1763806287425,-500.0,0.00018082,2]
[394642275,1763806287437,-500.0,0.00018082,2]
[394642276,1763806287447,-619.27,0.00018082,2]
[394642277,1763806287457,-633.07,0.00018082,2]
[394642278,1763806287467,-512.4,0.00018082,2]
[394642279,1763806287476,-734.0,0.00018082,2]
[394642280,1763806287486,-686.05,0.00018082,2]
[394642281,1763806287496,-689.73,0.00018082,2]
[394642282,1763806287506,-515.09,0.00018082,2]
[394642283,1763806287516,-909.79,0.00018082,2]
[394642284,1763806287525,-534.13,0.00018082,2]
[394642285,1763806287535,-633.99011762,0.00018082,2]
[394642286,1763806287544,-987.88,0.00018082,2]
[394642287,1763806287554,-326.25339082,0.00018082,2]
[394642288,1763806287563,-500.0,0.00018082,2]
[394642289,1763806287573,-1118.33,0.00018082,2]
[394642290,1763806287582,-593.96,0.00018082,2]
[394642291,1763806287592,-532.39,0.00018082,2]
[394642292,1763806287601,-500.0,0.00018082,2]
[394642293,1763806287611,-500.0,0.00018082,2]
[394642294,1763806287620,-500.0,0.00018082,2]
[394642295,1763806287630,-500.0,0.00018082,2]
[394642296,1763806287641,-500.0,0.00018082,2]
[394642297,1763806287651,-500.0,0.00018082,2]
[394642298,1763806287661,-500.0,0.00018082,2]
[394642299,1763806287671,-500.0,0.00018082,2]
[394642300,1763806287681,-500.0,0.00018082,2]
[394642301,1763806287690,-500.0,0.00018082,2]
[394642302,1763806287700,-500.0,0.00018082,2]
[394642303,1763806287710,-745.16,0.00018082,2]
[394642304,1763806287720,-643.4,0.00018082,2]
[394642305,1763806287734,-760.48,0.00018082,2]
[394642306,1763806287744,-500.0,0.00018082,2]
[394642307,1763806287753,-616.02603531,0.00018082,2]
[394642308,1763806287763,-660.26,0.00018082,2]
[394642309,1763806287774,-500.0,0.00018082,2]
[394642310,1763806287784,-640.78368482,0.00018082,2]
[394642311,1763806287794,-500.0,0.00018082,2]
[394642312,1763806287804,-500.0,0.00018082,2]
[394642313,1763806287814,-643.35,0.00018082,2]
[394642314,1763806287823,-536.96,0.00018082,2]
[394642315,1763806287833,-561.03,0.00018082,2]
[394642316,1763806287842,-667.06,0.00018082,2]
[394642317,1763806287852,-538.3599679,0.00018082,2]
[394642318,1763806287862,-500.0,0.00018082,2]
[394642319,1763806287871,-840.36,0.00018082,2]
[394642320,1763806287881,-588.85,0.00018082,2]
[394642321,1763806287892,-527.44,0.00018082,2]
[394642322,1763806287903,-500.0,0.00018082,2]
[394642323,1763806287913,-500.0,0.00018082,2]
[394642324,1763806287923,-1117.89,0.00018082,2]
[394642325,1763806287933,-500.0,0.00018082,2]
[394642326,1763806287943,-761.79,0.00018082,2]
[394642327,1763806287953,-620.55,0.00018082,2]
[394642328,1763806287962,-500.0,0.00018082,2]
[394642329,1763806287972,-593.36,0.00018082,2]
[394642330,1763806287982,-676.83,0.00018082,2]
[394642331,1763806287992,-500.0,0.00018082,2]
[394642332,1763806288002,-900.44,0.00018082,2]
[394642333,1763806288012,-1015.0,0.00018082,2]
[394642334,1763806288292,-588.06,0.00018082,2]
[394642335,1763806288303,-511.04,0.00018082,2]
[394642336,1763806288313,-500.0,0.00018082,2]
[394642337,1763806288322,-1144.77,0.00018082,2]
[394642338,1763806288332,-787.96,0.00018082,2]
[394642339,1763806288342,-500.0,0.00018082,2]
[394642340,1763806288351,-500.0,0.00018082,2]
[394642341,1763806288361,-865.95,0.00018082,2]
[394642342,1763806288371,-592.3,0.00018082,2]
[394642343,1763806288380,-540.6,0.00018082,2]
[394642344,1763806288390,-500.0,0.00018082,2]
[394642345,1763806288399,-790.49,0.00018082,2]
[394642346,1763806288409,-580.1,0.00018082,2]
[394642347,1763806288420,-500.0,0.00018082,2]
[394642348,1763806288431,-766.2,0.00018082,2]
[394642349,1763806288442,-557.29,0.00018082,2]
[394642350,1763806288453,-500.0,0.00018082,2]
[394642351,1763806288463,-500.0,0.00018082,2]
[394642352,1763806288472,-637.13,0.00018082,2]
[394642353,1763806288482,-1511.77,0.00018082,2]
[394642354,1763806288492,-699.88,0.00018082,2]
[394642355,1763806288502,-500.0,0.00018082,2]
[394642356,1763806288512,-705.23,0.00018082,2]
[394642357,1763806288523,-500.0,0.00018082,2]
[394642358,1763806288532,-768.25,0.00018082,2]
[394642359,1763806288542,-561.04,0.00018082,2]
[394642360,1763806288552,-500.0,0.00018082,2]
[394642361,1763806288561,-681.07,0.00018082,2]
[394642362,1763806288572,-889.28,0.00018082,2]
[394642363,1763806288581,-500.0,0.00018082,2]
[394642364,1763806288591,-471.42609695,0.00018082,2]
[394642365,1763806288600,-500.0,0.00018082,2]
[394642366,1763806288610,-500.0,0.00018082,2]
[394642367,1763806288621,-910.7,0.00018082,2]
[394642368,1763806288631,-581.69,0.00018082,2]
[394642369,1763806288642,-681.0,0.00018082,2]
[394642370,1763806288651,-500.0,0.00018082,2]
[394642371,1763806288660,-500.0,0.00018082,2]
[394642372,1763806288670,-561.58,0.00018082,2]
[394642373,1763806288680,-520.44,0.00018082,2]
[394642374,1763806288691,-892.07,0.00018082,2]
[394642375,1763806288706,-500.0,0.00018082,2]
[394642376,1763806288716,-500.0,0.00018082,2]
[394642377,1763806288726,-648.76,0.00018082,2]
[394642378,1763806288739,-540.37,0.00018082,2]
[394642379,1763806288749,-500.0,0.00018082,2]
[394642380,1763806288758,-500.0,0.00018082,2]
[394642381,1763806288768,-1478.21,0.00018082,2]
[394642382,1763806288779,-500.0,0.00018082,2]
[394642383,1763806288788,-500.0,0.00018082,2]
[394642384,1763806288798,-680.96,0.00018082,2]
[394642385,1763806288808,-201.86774374,0.00018082,2]
[394642386,1763806288820,-685.91,0.00018082,2]
[394642387,1763806288830,-500.0,0.00018082,2]
[394642388,1763806288840,-778.77,0.00018082,2]
[394642389,1763806288850,-500.0,0.00018082,2]
[394642390,1763806288860,-500.0,0.00018082,2]
[394642391,1763806288870,-500.0,0.00018082,2]
[394642392,1763806288880,-500.0,0.00018082,2]
[394642393,1763806288893,-714.38,0.00018082,2]
[394642394,1763806288904,-500.0,0.00018082,2]
[394642395,1763806288914,-498.31804663,0.00018082,2]
[394642396,1763806288924,-758.68,0.00018082,2]
[394642397,1763806288934,-745.24,0.00018082,2]
[394642398,1763806288944,-758.78,0.00018082,2]
[394642399,1763806288953,-1003.75,0.00018082,2]
[394642400,1763806288964,-500.0,0.00018082,2]
[394642401,1763806288973,-500.0,0.00018082,2]
[394642402,1763806288983,-500.0,0.00018082,2]
[394642403,1763806288993,-500.0,0.00018082,2]
[394642404,1763806289003,-753.49,0.00018082,2]
[394642405,1763806289012,-697.04,0.00018082,2]
[394642406,1763806289021,-595.07,0.00018082,2]
[394642407,1763806289030,-892.51,0.00018082,2]
[394642408,1763806289039,-270.27093284,0.00018082,2]
[394642409,1763806289049,-507.73,0.00018082,2]
[394642410,1763806289058,-500.0,0.00018082,2]
[394642411,1763806289068,-500.0,0.00018082,2]
[394642412,1763806289077,-817.08,0.00018082,2]
[394642413,1763806289087,-500.0,0.00018082,2]
[394642414,1763806289096,-1276.37,0.00018082,2]
[394642415,1763806289105,-598.13,0.00018082,2]
[394642416,1763806289115,-500.0,0.00018082,2]
[394642417,1763806289124,-500.0,0.00018082,2]
[394642418,1763806289137,-683.96,0.00018082,2]
[394642419,1763806289146,-500.0,0.00018082,2]
[394642420,1763806289156,-724.4,0.00018082,2]
[394642421,1763806289165,-500.0,0.00018082,2]
[394642422,1763806289175,-700.99,0.00018082,2]
[394642423,1763806289185,-506.6,0.00018082,2]
[394642424,1763806289194,-500.0,0.00018082,2]
[394642425,1763806289204,-500.0,0.00018082,2]
[394642426,1763806289213,-830.04,0.00018082,2]
[394642427,1763806289223,-500.0,0.00018082,2]
[394642428,1763806289232,-509.8,0.00018082,2]
[394642429,1763806289244,-500.0,0.00018082,2]
[394642430,1763806289253,-645.82,0.00018082,2]
[394642431,1763806289263,-500.0,0.00018082,2]
[394642432,1763806289273,-500.0,0.00018082,2]
[394642433,1763806289282,-500.0,0.00018082,2]
[394642434,1763806289292,-500.0,0.00018082,2]
[394642435,1763806289302,-500.0,0.00018082,2]
[394642436,1763806289311,-500.0,0.00018082,2]
[394642437,1763806289322,-651.49,0.00018082,2]
[394642438,1763806289332,-500.0,0.00018082,2]
[394642439,1763806289343,-500.0,0.00018082,2]
[394642440,1763806289352,-500.0,0.00018082,2]
[394642441,1763806289363,-680.93,0.00018082,2]
[394642442,1763806289372,-950.5,0.00018082,2]
[394642443,1763806289381,-500.0,0.00018082,2]
[394642444,1763806289391,-768.8,0.00018082,2]
[394642445,1763806289400,-1163.93,0.00018082,2]
[394642446,1763806289410,-938.85,0.00018082,2]
[394642447,1763806289419,-500.0,0.00018082,2]
[394642448,1763806289429,-816.31,0.00018082,2]
[394642449,1763806289438,-500.0,0.00018082,2]
[394642450,1763806289448,-695.83,0.00018082,2]
[394642451,1763806289459,-500.0,0.00018082,2]
[394642452,1763806289468,-1025.64,0.00018082,2]
[394642453,1763806289478,-692.67,0.00018082,2]
[394642454,1763806289487,-970.47,0.00018082,2]
[394642455,1763806289496,-500.0,0.00018082,2]
[394642456,1763806289506,-500.0,0.00018082,2]
[394642457,1763806289515,-500.0,0.00018082,2]
[394642458,1763806289524,-5173.16,0.00018082,2]
[394642459,1763806289533,-500.0,0.00018082,2]
[394642460,1763806289543,-500.0,0.00018082,2]
[394642461,1763806289553,-500.0,0.00018082,2]
[394642462,1763806289562,-500.0,0.00018082,2]
[394642463,1763806289573,-500.0,0.00018082,2]
[394642464,1763806289582,-500.0,0.00018082,2]
[394642465,1763806289591,-974.11,0.00018082,2]
[394642466,1763806289600,-500.0,0.00018082,2]
[394642467,1763806289610,-500.0,0.00018082,2]
[394642468,1763806289620,-500.0,0.00018082,2]
[394642469,1763806289630,-500.0,0.00018082,2]
[394642470,1763806289641,-942.8,0.00018082,2]
[394642471,1763806289651,-1130.33,0.00018082,2]
[394642472,1763806289661,-500.0,0.00018082,2]
[394642473,1763806289671,-2544.87,0.00018082,2]
[394642474,1763806289681,-804.3,0.00018082,2]
[394642475,1763806289692,-674.23,0.00018082,2]
[394642476,1763806289702,-1191.45,0.00018082,2]
[394642477,1763806289712,-585.41,0.00018082,2]
[394642478,1763806289721,-500.0,0.00018082,2]
[394642479,1763806289734,-500.0,0.00018082,2]
[394642480,1763806289744,-839.14,0.00018082,2]
[394642481,1763806289755,-564.02,0.00018082,2]
[394642482,1763806289765,-505.12,0.00018082,2]
[394642483,1763806289777,-559.83,0.00018082,2]
[394642484,1763806289787,-500.0,0.00018082,2]
[394642485,1763806289796,-500.0,0.00018082,2]
[394642486,1763806289805,-500.0,0.00018082,2]
[394642487,1763806289818,-1055.95,0.00018082,2]
[394642488,1763806289828,-1463.02,0.00018082,2]
[394642489,1763806289838,-521.42,0.00018082,2]
[394642490,1763806289847,-733.24,0.00018082,2]
[394642491,1763806289857,-782.33,0.00018082,2]
[394642492,1763806289867,-500.0,0.00018082,2]
[394642493,1763806289877,-734.36,0.00018082,2]
[394642494,1763806289887,-500.0,0.00018082,2]
[394642495,1763806289896,-500.0,0.00018082,2]
[394642496,1763806289905,-500.0,0.00018082,2]
[394642497,1763806289915,-839.69,0.00018082,2]
[394642498,1763806289924,-500.0,0.00018082,2]
[394642499,1763806289933,-500.0,0.00018082,2]
[394642500,1763806289945,-1249.82,0.00018082,2]
[394642501,1763806289955,-1049.8,0.00018082,2]
[394642502,1763806289964,-523.31,0.00018082,2]
[394642503,1763806289972,-594.90468563,0.00018082,2]
[394642504,1763806289982,-1579.91,0.00018082,2]
[394642505,1763806289991,-500.0,0.00018082,2]
[394642506,1763806290002,-500.0,0.00018082,2]
[394642507,1763806290011,-500.0,0.00018082,2]
[394642508,1763806290021,-500.0,0.00018082,2]
[394642509,1763806290030,-532.69,0.00018082,2]
[394642510,1763806290040,-570.72,0.00018082,2]
[394642511,1763806290051,-500.0,0.00018082,2]
[394642512,1763806290060,-515.86,0.00018082,2]
[394642513,1763806290070,-1073.42,0.00018082,2]
[394642514,1763806290079,-1688.87,0.00018082,2]
[394642515,1763806290088,-500.0,0.00018082,2]
[394642516,1763806290097,-500.0,0.00018082,2]
[394642517,1763806290107,-602.73,0.00018082,2]
[394642518,1763806290116,-786.03,0.00018082,2]
[394642519,1763806290126,-500.0,0.00018082,2]
[394642520,1763806290136,-500.0,0.00018082,2]
[394642521,1763806290145,-500.0,0.00018082,2]
[394642522,1763806290155,-1309.89,0.00018082,2]
[394642523,1763806290164,-500.0,0.00018082,2]
[394642524,1763806290173,-500.0,0.00018082,2]
[394642525,1763806290183,-500.0,0.00018082,2]
[394642526,1763806290192,-919.35,0.00018082,2]
[394642527,1763806290201,-606.55,0.00018082,2]
[394642528,1763806290211,-523.55,0.00018082,2]
[394642529,1763806290221,-816.25,0.00018082,2]
[394642530,1763806290230,-500.0,0.00018082,2]
[394642531,1763806290240,-500.0,0.00018082,2]
[394642532,1763806290249,-500.0,0.00018082,2]
[394642533,1763806290259,-500.0,0.00018082,2]
[394642534,1763806290268,-1202.89,0.00018082,2]
[394642535,1763806290278,-696.52,0.00018082,2]
[394642536,1763806290287,-532.1,0.00018082,2]